fUST/lending_fUST_20250912
["ID","MTS","AMOUNT","RATE_DAILY","PERIOD"]
[384890379,1757620244614,-480.0,0.00014552,2]
[384890380,1757620244623,-480.0,0.00014552,2]
[384890381,1757620244633,-335.10004,0.00014552,2]
[384890382,1757620244642,-151.0,0.00014552,2]
[384890383,1757620244651,-4182.45,0.00014552,2]
[384890384,1757620244660,-480.0,0.00014552,2]
[384890385,1757620244670,-151.0,0.00014552,2]
[384890386,1757620244680,-480.0,0.00014552,2]
[384890387,1757620244690,-480.0,0.00014552,2]
[384890388,1757620244699,-379.77,0.00014552,2]
[384890389,1757620244709,-151.0,0.00014552,2]
[384890390,1757620244723,-480.0,0.00014552,2]
[384890391,1757620244732,-151.0,0.00014552,2]
[384890392,1757620244743,-480.0,0.00014552,2]
[384890393,1757620244753,-1191.31,0.00014552,2]
[384890394,1757620244762,-649.38,0.00014552,2]
[384890396,1757620244775,-151.0,0.00014552,2]
[384890397,1757620244784,-480.0,0.00014552,2]
[384890399,1757620244794,-151.0,0.00014552,2]
[384890401,1757620244803,-151.0,0.00014552,2]
[384890403,1757620244813,-566.84,0.00014552,2]
[384890405,1757620244822,-480.0,0.00014552,2]
[384890407,1757620244831,-480.0,0.00014552,2]
[384890409,1757620244840,-480.0,0.00014552,2]
[384890411,1757620244850,-151.0,0.00014552,2]
[384890413,1757620244859,-151.0,0.00014552,2]
[384890415,1757620244868,-480.0,0.00014552,2]
[384890417,1757620244877,-1376.0,0.00014552,2]
[384890419,1757620244886,-480.0,0.00014552,2]
[384890421,1757620244895,-151.0,0.00014552,2]
[384890423,1757620244904,-1159.19,0.00014552,2]
[384890425,1757620244914,-480.0,0.00014552,2]
[384890427,1757620244923,-480.0,0.00014552,2]
[384890429,1757620244932,-570.64133601,0.00014552,2]
[384890431,1757620244941,-480.0,0.00014552,2]
[384890432,1757620244950,-153.708351,0.00014553,2]
[384890434,1757620244959,-480.0,0.00014553,2]
[384890436,1757620244967,-480.0,0.00014553,2]
[384890438,1757620244977,-480.0,0.00014553,2]
[384890440,1757620244986,-480.0,0.00014553,2]
[384890442,1757620244995,-480.0,0.00014553,2]
[384890444,1757620245004,-480.0,0.00014553,2]
[384890446,1757620245013,-480.0,0.00014553,2]
[384890448,1757620245023,-480.0,0.00014553,2]
[384890450,1757620245032,-480.0,0.00014553,2]
[384890452,1757620245042,-480.0,0.00014553,2]
[384890454,1757620245051,-492.56,0.00014553,2]
[384890456,1757620245061,-480.0,0.00014553,2]
[384890458,1757620245071,-510.5,0.00014553,2]
[384890460,1757620245080,-480.0,0.00014553,2]
[384890462,1757620245089,-480.0,0.00014553,2]
[384890464,1757620245098,-480.0,0.00014553,2]
[384890466,1757620245108,-151.0,0.00014553,2]
[384890468,1757620245118,-626.95,0.00014553,2]
[384890470,1757620245128,-480.0,0.00014553,2]
[384890472,1757620245138,-480.0,0.00014553,2]
[384890474,1757620245148,-480.0,0.00014553,2]
[384890476,1757620245157,-480.0,0.00014553,2]
[384890478,1757620245167,-480.0,0.00014553,2]
[384890480,1757620245177,-151.0,0.00014553,2]
[384890482,1757620245186,-480.0,0.00014553,2]
[384890484,1757620245196,-480.0,0.00014553,2]
[384890486,1757620245205,-10127.46,0.00014553,2]
[384890488,1757620245215,-880.66,0.00014553,2]
[384890490,1757620245225,-480.0,0.00014553,2]
[384890492,1757620245234,-480.0,0.00014553,2]
[384890494,1757620245243,-978.57,0.00014553,2]
[384890496,1757620245253,-480.0,0.00014553,2]
[384890498,1757620245262,-480.0,0.00014553,2]
[384890500,1757620245271,-732.28,0.00014553,2]
[384890502,1757620245281,-480.0,0.00014553,2]
[384890504,1757620245290,-480.0,0.00014553,2]
[384890506,1757620245303,-480.0,0.00014553,2]
[384890508,1757620245313,-480.0,0.00014553,2]
[384890510,1757620245324,-480.0,0.00014554,2]
[384890512,1757620245334,-480.0,0.00014554,2]
[384890514,1757620245344,-480.0,0.00014554,2]
[384890516,1757620245353,-480.0,0.00014554,2]
[384890518,1757620245363,-480.0,0.00014554,2]
[384890520,1757620245372,-480.0,0.00014554,2]
[384890522,1757620245381,-480.0,0.00014554,2]
[384890524,1757620245390,-480.0,0.00014555,2]
[384890526,1757620245400,-2695.0,0.00014587,2]
[384890528,1757620245409,-976.0,0.00014587,2]
[384890530,1757620245419,-2155.0,0.00014587,2]
[384890532,1757620245427,-705.388,0.00014587,2]
[384890534,1757620245436,-424.027,0.00014587,2]
[384890536,1757620245445,-430.548,0.00014587,2]
[384890538,1757620245455,-168.0,0.00014617,2]
[384890540,1757620245464,-168.0,0.00014648,2]
[384890542,1757620245473,-168.0,0.00014687,2]
[384890544,1757620245481,-151.0,0.000147,2]
[384890546,1757620245490,-162.72247615,0.00014788,2]
[384890548,1757620245500,-521.24,0.00014825,2]
[384890550,1757620245509,-480.0,0.00014825,2]
[384890552,1757620245518,-1907.12,0.00014825,2]
[384890554,1757620245527,-1428.26,0.00014825,2]
[384890556,1757620245536,-480.0,0.00014825,2]
[384890558,1757620245546,-480.0,0.00014825,2]
[384890560,1757620245555,-131.29832132,0.00014825,2]
[384890562,1757620245569,-54.90167868,0.00014825,2]
[384890564,1757620245579,-1066.6,0.00014825,2]
[384890566,1757620245589,-402.15292691,0.00014825,2]
[384890569,1757620245604,-77.84707309,0.00014825,2]
[384890571,1757620245613,-779.02,0.00014825,2]
[384890573,1757620245624,-203.96054812,0.00014825,2]
[384890575,1757620245635,-886.05945188,0.00014825,2]
[384890577,1757620245644,-480.0,0.00014825,2]
[384890579,1757620245653,-480.0,0.00014825,2]
[384890581,1757620245663,-480.0,0.00014825,2]
[384890583,1757620245672,-480.0,0.00014825,2]
[384890585,1757620245681,-684.87,0.00014825,2]
[384890587,1757620245691,-190.027662,0.00014825,2]
[384890589,1757620245700,-480.0,0.00014825,2]
[384890591,1757620245708,-480.0,0.00014825,2]
[384890593,1757620245722,-480.0,0.00014825,2]
[384890595,1757620245731,-909.95,0.00014825,2]
[384890597,1757620245740,-480.0,0.00014825,2]
[384890599,1757620245749,-480.0,0.00014825,2]
[384890601,1757620245760,-151.294995,0.00014825,2]
[384890603,1757620245770,-151.294995,0.00014825,2]
[384890605,1757620245780,-151.294995,0.00014825,2]
[384890607,1757620245789,-151.294995,0.00014825,2]
[384890609,1757620245798,-151.0,0.00014826,2]
[384890611,1757620245808,-480.0,0.00014826,2]
[384890613,1757620245817,-480.0,0.00014826,2]
[384890614,1757620245826,-573.7,0.00014826,2]
[384890616,1757620245835,-410.93111462,0.00014826,2]
[384890643,1757620246077,182.22677453,0.00013594,2]
[384890656,1757620246194,-69.06888538,0.00014826,2]
[384890658,1757620246203,-350.21205689,0.00014826,2]
[384890660,1757620246214,-129.78794311,0.00014826,2]
[384890662,1757620246223,-408.87698803,0.00014826,2]
[384890843,1757620248047,-53.04301197,0.00014826,2]
[384890845,1757620248057,-191.718481,0.00014826,2]
[384890847,1757620248067,-191.718481,0.00014826,2]
[384890849,1757620248076,-191.718481,0.00014826,2]
[384890851,1757620248085,-191.718481,0.00014826,2]
[384890853,1757620248094,-2169.85,0.00014826,2]
[384890855,1757620248103,-979.73,0.00014826,2]
[384890857,1757620248113,-563.19,0.00014826,2]
[384890859,1757620248122,-480.0,0.00014826,2]
[384890861,1757620248131,-480.0,0.00014826,2]
[384890863,1757620248141,-151.0,0.00014826,2]
[384890865,1757620248150,-4182.45,0.00014826,2]
[384890867,1757620248161,-246.728576,0.00014826,2]
[384890868,1757620248172,-151.0,0.00014826,2]
[384890870,1757620248182,-480.0,0.00014826,2]
[384890872,1757620248192,-1191.31,0.00014826,2]
[384890874,1757620248202,-649.38,0.00014826,2]
[384890876,1757620248213,-151.0,0.00014826,2]
[384890878,1757620248223,-480.0,0.00014826,2]
[384890880,1757620248233,-151.0,0.00014826,2]
[384890882,1757620248243,-151.0,0.00014826,2]
[384890884,1757620248252,-480.0,0.00014826,2]
[384890886,1757620248261,-480.0,0.00014826,2]
[384890888,1757620248271,-480.0,0.00014826,2]
[384890890,1757620248281,-151.0,0.00014826,2]
[384890892,1757620248290,-480.0,0.00014826,2]
[384890894,1757620248299,-1376.0,0.00014826,2]
[384890896,1757620248308,-480.0,0.00014826,2]
[384890898,1757620248317,-1159.19,0.00014826,2]
[384890900,1757620248326,-461.47,0.00014826,2]
[384890902,1757620248336,-158.44,0.00014827,2]
[384890904,1757620248345,-480.0,0.00014827,2]
[384890906,1757620248355,-311.68,0.00014827,2]
[384890908,1757620248364,-480.0,0.00014827,2]
[384890910,1757620248374,-480.0,0.00014827,2]
[384890912,1757620248384,-344.44,0.00014827,2]
[384890914,1757620248393,-480.0,0.00014827,2]
[384890916,1757620248402,-510.5,0.00014827,2]
[384890918,1757620248412,-480.0,0.00014827,2]
[384890920,1757620248421,-480.0,0.00014827,2]
[384890922,1757620248431,-249.75700284,0.00014827,2]
[384890924,1757620248440,-151.0,0.00014827,2]
[384890926,1757620248450,-626.95,0.00014827,2]
[384890928,1757620248459,-589.1,0.00014827,2]
[384890930,1757620248468,-480.0,0.00014827,2]
[384890932,1757620248478,-480.0,0.00014827,2]
[384890934,1757620248487,-480.0,0.00014827,2]
[384890936,1757620248496,-480.0,0.00014827,2]
[384890938,1757620248508,-151.0,0.00014827,2]
[384890940,1757620248518,-480.0,0.00014827,2]
[384890942,1757620248527,-480.0,0.00014827,2]
[384890944,1757620248536,-880.66,0.00014827,2]
[384890946,1757620248545,-480.0,0.00014827,2]
[384890948,1757620248555,-480.0,0.00014827,2]
[384890950,1757620248564,-978.57,0.00014827,2]
[384890952,1757620248574,-480.0,0.00014827,2]
[384890954,1757620248584,-468.91968244,0.00014827,2]
[384890956,1757620248593,-732.28,0.00014827,2]
[384890958,1757620248602,-480.0,0.00014827,2]
[384890960,1757620248612,-180.12,0.00014827,2]
[384890962,1757620248621,-571.85,0.00014828,2]
[384890964,1757620248630,-480.0,0.00014828,2]
[384890966,1757620248639,-480.0,0.00014828,2]
[384890968,1757620248648,-480.0,0.00014829,2]
[384890970,1757620248657,-168.0,0.00014869,2]
[384890972,1757620248667,-500.0,0.00014899,2]
[384890982,1757620248752,-500.0,0.00014899,2]
[384890984,1757620248764,-151.0,0.000149,2]
[384890986,1757620248773,-500.0,0.00014901,2]
[384890987,1757620248783,-500.0,0.00014901,2]
[384890990,1757620248793,-500.0,0.00014901,2]
[384890992,1757620248802,-500.0,0.00014901,2]
[384890994,1757620248811,-500.0,0.00014901,2]
[384890995,1757620248821,-263.97067785,0.00014901,2]
[384890997,1757620248830,-500.0,0.00014901,2]
[384890999,1757620248839,-500.0,0.00014901,2]
[384891001,1757620248848,-500.0,0.00014901,2]
[384891003,1757620248858,-191.46324688,0.00014901,2]
[384891005,1757620248867,-500.0,0.00014901,2]
[384891007,1757620248876,-500.0,0.00014901,2]
[384891009,1757620248885,-500.0,0.00014901,2]
[384891011,1757620248895,-501.27550109,0.00014901,2]
[384891013,1757620248904,-275.4374358,0.00014901,2]
[384891015,1757620248914,-500.0,0.00014901,2]
[384891017,1757620248923,-500.0,0.00014914,2]
[384891019,1757620248932,-501.85826548,0.00014914,2]
[384891021,1757620248941,-500.0,0.00014928,2]
[384891023,1757620248950,-500.0,0.00014928,2]
[384891025,1757620248959,-500.0,0.00014928,2]
[384891027,1757620248969,-500.0,0.00014928,2]
[384891029,1757620248979,-500.0,0.00014928,2]
[384891031,1757620248988,-168.0,0.0001493,2]
[384891033,1757620248998,-236.22399979,0.00014935,2]
[384891035,1757620249006,-500.0,0.00014935,2]
[384891037,1757620249016,-500.0,0.0001494,2]
[384891039,1757620249025,-503.91850416,0.0001494,2]
[384891041,1757620249034,-500.0,0.0001494,2]
[384891043,1757620249043,-151.294995,0.0001494,2]
[384891045,1757620249053,-151.294995,0.0001494,2]
[384891047,1757620249063,-151.294995,0.0001494,2]
[384891049,1757620249072,-151.294987,0.0001494,2]
[384891051,1757620249081,-500.0,0.0001494,2]
[384891053,1757620249090,-500.0,0.0001494,2]
[384891055,1757620249099,-500.0,0.00014955,2]
[384891057,1757620249108,-168.0,0.0001496,2]
[384891058,1757620249118,-184.96309044,0.00014974,2]
[384891060,1757620249127,-500.0,0.00014974,2]
[384891063,1757620249136,-520.91065189,0.0001499,2]
[384891064,1757620249145,-161.33637622,0.00015,2]
[384891066,1757620249155,-420.0,0.00015044,2]
[384891068,1757620249164,-168.0,0.0001507,2]
[384891070,1757620249173,-1907.12,0.00015099,2]
[384891072,1757620249183,-480.0,0.00015099,2]
[384891074,1757620249193,-480.0,0.00015099,2]
[384891076,1757620249202,-1066.6,0.00015099,2]
[384891078,1757620249212,-480.0,0.00015099,2]
[384891080,1757620249221,-779.02,0.00015099,2]
[384891083,1757620249231,-1090.02,0.00015099,2]
[384891085,1757620249241,-480.0,0.00015099,2]
[384891087,1757620249250,-480.0,0.00015099,2]
[384891088,1757620249259,-480.0,0.00015099,2]
[384891090,1757620249269,-684.87,0.00015099,2]
[384891092,1757620249277,-480.0,0.00015099,2]
[384891094,1757620249288,-480.0,0.00015099,2]
[384891096,1757620249297,-480.0,0.00015099,2]
[384891098,1757620249307,-909.95,0.00015099,2]
[384891100,1757620249316,-245.6,0.00015099,2]
[384891102,1757620249325,-480.0,0.00015099,2]
[384891104,1757620249334,-3353.95220134,0.000151,2]
[384891106,1757620249343,-151.0,0.000151,2]
[384891108,1757620249353,-480.0,0.000151,2]
[384891110,1757620249362,-480.0,0.000151,2]
[384891112,1757620249372,-171.09760692,0.000151,2]
[384891114,1757620249381,-191.718481,0.000151,2]
[384891116,1757620249390,-191.718481,0.000151,2]
[384891118,1757620249399,-191.718481,0.000151,2]
[384891119,1757620249408,-191.718477,0.000151,2]
[384891121,1757620249418,-2169.85,0.000151,2]
[384891123,1757620249427,-979.73,0.000151,2]
[384891125,1757620249437,-563.19,0.000151,2]
[384891127,1757620249446,-480.0,0.000151,2]
[384891129,1757620249455,-480.0,0.000151,2]
[384891131,1757620249464,-151.0,0.000151,2]
[384891133,1757620249474,-4182.45,0.000151,2]
[384891135,1757620249483,-294.428008,0.000151,2]
[384891137,1757620249492,-473.48,0.000151,2]
[384891139,1757620249502,-1191.31,0.000151,2]
[384891141,1757620249511,-649.38,0.000151,2]
[384891143,1757620249520,-151.0,0.000151,2]
[384891145,1757620249529,-480.0,0.000151,2]
[384891147,1757620249538,-151.0,0.000151,2]
[384891148,1757620249547,-151.0,0.000151,2]
[384891150,1757620249557,-285.88,0.000151,2]
[384891152,1757620249566,-480.0,0.000151,2]
[384891154,1757620249576,-480.0,0.000151,2]
[384891156,1757620249585,-273.903712,0.000151,2]
[384891158,1757620249594,-480.0,0.000151,2]
[384891160,1757620249603,-1376.0,0.000151,2]
[384891162,1757620249612,-431.82,0.000151,2]
[384891164,1757620249621,-1159.19,0.000151,2]
[384891166,1757620249630,-480.0,0.00015101,2]
[384891168,1757620249639,-428.28,0.00015101,2]
[384891170,1757620249648,-151.0,0.00015101,2]
[384891172,1757620249658,-223.88,0.00015101,2]
[384891174,1757620249668,-510.5,0.00015101,2]
[384891176,1757620249677,-587.12,0.00015101,2]
[384891178,1757620249685,-480.0,0.00015101,2]
[384891180,1757620249694,-626.95,0.00015101,2]
[384891182,1757620249703,-480.0,0.00015101,2]
[384891184,1757620249713,-151.0,0.00015101,2]
[384891186,1757620249726,-880.66,0.00015101,2]
[384891188,1757620249735,-480.0,0.00015101,2]
[384891189,1757620249744,-167.55,0.00015101,2]
[384891191,1757620249754,-978.57,0.00015101,2]
[384891193,1757620249763,-732.28,0.00015101,2]
[384891195,1757620249773,-480.0,0.00015102,2]
[384891197,1757620249782,-467.28,0.00015102,2]
[384891199,1757620249792,-151.0,0.00015102,2]
[384891201,1757620249801,-524.3,0.00015103,2]
[384891203,1757620249811,-503.28828913,0.00015155,2]
[384891205,1757620249820,-151.0,0.000152,2]
[384891207,1757620249828,-1305.0,0.00015297,2]
[384891209,1757620249837,-151.0,0.000153,2]
[384891211,1757620249846,-168.0,0.0001531,2]
[384891213,1757620249855,-1907.12,0.00015373,2]
[384891215,1757620249864,-480.0,0.00015373,2]
[384891217,1757620249872,-1066.6,0.00015373,2]
[384891219,1757620249881,-198.6,0.00015373,2]
[384891221,1757620249890,-779.02,0.00015373,2]
[384891222,1757620249899,-1090.02,0.00015373,2]
[384891224,1757620249908,-329.85,0.00015373,2]
[384891226,1757620249917,-480.0,0.00015373,2]
[384891228,1757620249926,-480.0,0.00015373,2]
[384891230,1757620249935,-684.87,0.00015373,2]
[384891232,1757620249944,-480.0,0.00015373,2]
[384891234,1757620249952,-480.0,0.00015373,2]
[384891236,1757620249961,-416.95376411,0.00015373,2]
[384891247,1757620250052,-63.04623589,0.00015373,2]
[384891249,1757620250061,-909.95,0.00015373,2]
[384891251,1757620250070,-480.0,0.00015373,2]
[384891253,1757620250079,-480.0,0.00015374,2]
[384891255,1757620250088,-614.5,0.00015374,2]
[384891256,1757620250097,-2169.85,0.00015374,2]
[384891259,1757620250107,-979.73,0.00015374,2]
[384891260,1757620250116,-563.19,0.00015374,2]
[384891262,1757620250125,-480.0,0.00015374,2]
[384891264,1757620250134,-384.85,0.00015374,2]
[384891266,1757620250143,-4182.45,0.00015374,2]
[384891268,1757620250151,-1191.31,0.00015374,2]
[384891270,1757620250160,-477.2506715,0.00015374,2]
[384891272,1757620250172,-172.1293285,0.00015374,2]
[384891274,1757620250180,-480.0,0.00015374,2]
[384891276,1757620250190,-480.0,0.00015374,2]
[384891278,1757620250198,-480.0,0.00015374,2]
[384891280,1757620250207,-480.0,0.00015374,2]
[384891282,1757620250216,-1376.0,0.00015374,2]
[384891284,1757620250225,-1159.19,0.00015374,2]
[384891286,1757620250234,-480.0,0.00015375,2]
[384891288,1757620250243,-363.17001937,0.00015375,2]
[384891290,1757620250253,-147.32998063,0.00015375,2]
[384891292,1757620250262,-480.0,0.00015375,2]
[384891294,1757620250271,-626.95,0.00015375,2]
[384891296,1757620250280,-480.0,0.00015375,2]
[384891298,1757620250289,-880.66,0.00015375,2]
[384891300,1757620250298,-480.0,0.00015375,2]
[384891302,1757620250306,-978.57,0.00015375,2]
[384891304,1757620250315,-732.28,0.00015375,2]
[384891306,1757620250324,-480.0,0.00015376,2]
[384891308,1757620250333,-157.0,0.0001539,2]
[384891310,1757620250342,-157.0,0.0001539,2]
[384891312,1757620250351,-157.0,0.0001539,2]
[384891314,1757620250359,-151.0,0.000154,2]
[384891315,1757620250369,-720.0,0.00015405,2]
[384891316,1757620250378,-574.65541848,0.00015447,2]
[384891317,1757620250389,-255.54918132,0.00015449,2]
[384891318,1757620250398,-1000.0,0.00015449,2]
[384891319,1757620250407,-102.8398272,0.00015449,2]
[384892161,1757620260799,1715.51,0.00013592,2]
[384892922,1757620268672,2495.51,0.00013592,2]
[384893913,1757620279571,302.24005922,0.00018639,20]
[384894629,1757620286748,3819.41,0.00013592,2]
[384894820,1757620295238,484.31073974,0.00013592,2]
[384894821,1757620307138,2265.4028278,0.0001305,2]
[384894822,1757620311754,163.85,0.00013591,2]
[384894823,1757620335706,463.85,0.00013591,2]
[384894824,1757620359565,463.85,0.00013591,2]
[384894825,1757620382699,463.85,0.00013591,2]
[384894827,1757620403458,681.0019812,0.0001287,2]
[384894828,1757620406733,463.85,0.00013591,2]
[384894829,1757620430883,463.85,0.00013591,2]
[384894830,1757620441047,1000.0,0.0001287,2]
[384894831,1757620454165,463.85,0.00013591,2]
[384894832,1757620467334,9951.1158121,0.0001287,2]
[384894833,1757620479125,463.85,0.00013591,2]
[384894834,1757620491529,3384.6877574,0.00012935,2]
[384894835,1757620503090,463.85,0.00013591,2]
[384894836,1757620512085,463.85,0.00013591,2]
[384894837,1757620520136,463.85,0.00013591,2]
[384894838,1757620529341,463.85,0.00013591,2]
[384894839,1757620538189,463.85,0.00013591,2]
[384894840,1757620546022,463.85,0.00013591,2]
[384894841,1757620554611,463.85,0.00013591,2]
[384894842,1757620563498,463.85,0.00013591,2]
[384894843,1757620571498,463.85,0.00013591,2]
[384894844,1757620579368,463.85,0.00013591,2]
[384894845,1757620587982,463.85,0.00013591,2]
[384894846,1757620595867,943.85,0.00013591,2]
[384894847,1757620597712,9056.16,0.0001287,2]
[384894848,1757620597733,10000.01,0.0001287,2]
[384894849,1757620597755,10000.01,0.0001287,2]
[384894850,1757620597776,10000.01,0.0001287,2]
[384894851,1757620597797,10000.01,0.0001287,2]
[384894852,1757620597818,10000.01,0.0001287,2]
[384894853,1757620597838,7505.5050312,0.0001287,2]
[384894855,1757620604057,943.85,0.00013591,2]
[384894856,1757620611810,272.31,0.00012329,2]
[384894857,1757620611911,943.85,0.00013591,2]
[384894859,1757620621040,1903.85,0.00013591,2]
[384894860,1757620629367,1903.85,0.00013591,2]
[384894861,1757620629746,666.0,0.0001287,2]
[384894862,1757620637401,1903.85,0.00013591,2]
[384894863,1757620645351,1903.85,0.00013591,2]
[384894864,1757620653690,1903.85,0.00013591,2]
[384894865,1757620662720,2396.9,0.00013591,2]
[384894866,1757620671447,450.6921082,0.00013591,2]
[384894867,1757620679307,3582.75,0.00013591,2]
[384894869,1757620691032,498.348066,0.00013699,2]
[384894870,1757620704444,300.0,0.0001359,2]
[384894871,1757620727340,300.0,0.0001359,2]
[384894872,1757620750799,300.0,0.0001359,2]
[384894874,1757620774408,300.0,0.0001359,2]
[384894875,1757620797541,300.0,0.0001359,2]
[384894876,1757620820380,300.0,0.0001359,2]
[384894877,1757620845442,300.0,0.0001359,2]
[384894878,1757620869613,10000.01,0.00013591,2]
[384894879,1757620869638,605.69383566,0.00013591,2]
[384894882,1757620895077,4214.47580853,0.00013591,2]
[384894883,1757620909732,899.0,0.00012329,2]
[384894884,1757620918829,2474.80390012,0.00013591,2]
[384894885,1757620950488,899.0,0.0001359,2]
[384894886,1757620965697,1500.0,0.0001359,2]
[384894887,1757620988423,1500.0,0.0001359,2]
[384894890,1757621011784,1500.0,0.0001359,2]
[384894891,1757621020845,1500.0,0.0001359,2]
[384894892,1757621044544,1500.0,0.0001359,2]
[384894893,1757621067501,1200.0,0.0001359,2]
[384894894,1757621075331,1200.0,0.0001359,2]
[384894895,1757621084048,1200.0,0.0001359,2]
[384894896,1757621092386,1200.0,0.0001359,2]
[384894897,1757621100778,1200.0,0.0001359,2]
[384894898,1757621109702,300.0,0.00013589,2]
[384894899,1757621118913,300.0,0.00013589,2]
[384894900,1757621127173,300.0,0.00013589,2]
[384894901,1757621136660,300.0,0.00013589,2]
[384894902,1757621145407,300.0,0.00013589,2]
[384894907,1757621153464,300.0,0.00013589,2]
[384894908,1757621162039,300.0,0.00013589,2]
[384894909,1757621170675,600.0,0.00013589,2]
[384894910,1757621179051,600.0,0.00013589,2]
[384894911,1757621188294,600.0,0.00013589,2]
[384894912,1757621188935,1186.0,0.00027397,120]
[384894913,1757621196658,600.0,0.00013589,2]
[384894915,1757621204880,349.16866559,0.000151,7]
[384894919,1757621213364,1421.2608264,0.000151,7]
[384894921,1757621222124,5000.0,0.000151,7]
[384894922,1757621246423,4042.49878515,0.000151,7]
[384894923,1757621273252,175.552699,0.00012972,2]
[384894924,1757621283695,181.942694,0.00013315,2]
[384894964,1757621432257,-1200.0,0.00013726,2]
[384894966,1757621432270,-480.69313454,0.00013726,2]
[384894968,1757621432280,-300.0,0.00013726,2]
[384894970,1757621432290,-300.0,0.00013726,2]
[384894972,1757621432301,-480.0,0.00013726,2]
[384894974,1757621432311,-480.0,0.00013727,2]
[384894976,1757621432322,-480.0,0.00013727,2]
[384894978,1757621432332,-480.0,0.00013727,2]
[384894980,1757621432342,-564.39,0.00013727,2]
[384894982,1757621432353,-157.52932422,0.00013727,2]
[384894984,1757621432363,-500.0,0.00013727,2]
[384894986,1757621432374,-500.0,0.00013727,2]
[384894989,1757621432384,-500.0,0.00013727,2]
[384894991,1757621432394,-500.0,0.00013727,2]
[384894993,1757621432406,-500.0,0.00013727,2]
[384894995,1757621432416,-500.0,0.00013727,2]
[384894997,1757621432426,-500.0,0.00013727,2]
[384894999,1757621432436,-500.0,0.00013727,2]
[384895001,1757621432447,-500.0,0.00013727,2]
[384895003,1757621432456,-500.0,0.00013727,2]
[384895005,1757621432467,-500.0,0.00013727,2]
[384895008,1757621432478,-500.0,0.00013727,2]
[384895010,1757621432488,-500.0,0.00013727,2]
[384895012,1757621432499,-500.0,0.00013727,2]
[384895014,1757621432509,-500.0,0.00013727,2]
[384895016,1757621432519,-500.0,0.00013727,2]
[384895018,1757621432529,-500.0,0.00013727,2]
[384895020,1757621432540,-500.0,0.00013727,2]
[384895023,1757621432550,-500.0,0.00013727,2]
[384895025,1757621432561,-500.0,0.00013727,2]
[384895026,1757621432571,-500.0,0.00013727,2]
[384895027,1757621432582,-500.0,0.00013727,2]
[384895029,1757621432592,-315.2935876,0.00013727,2]
[384895030,1757621432602,-500.0,0.00013727,2]
[384895032,1757621432613,-500.0,0.00013727,2]
[384895034,1757621432623,-500.0,0.00013727,2]
[384895035,1757621432634,-500.0,0.00013727,2]
[384895036,1757621432644,-500.0,0.00013727,2]
[384895037,1757621432655,-500.0,0.00013727,2]